{"text_format":"3","workbook":"xlsx","n_sheets":2,"sheets":["Lista obecności","Zajęcia dodatkowe "],"read":"whole","date_system":"1900"}

{"sheet":"Lista obecności","index":0,"n_rows":31,"n_cols":13,"rows_kept":31,"merged":[[1,1,1,12],[2,1,2,12],[19,1,19,12],[20,1,20,12]]}
[]
[null,"Lista obecności -  nr projektu... / Nazwa zajęć... / nr grupy... "]
[null,"Nauczyciel prowadzący: ………………………"]
[null,"data*","2024-05-11","2024-05-12","2024-05-13","2024-05-14","2024-05-15","2024-05-16","2024-05-17","2024-05-18","2024-05-19","(…)","suma"]
[null,"liczba godzin zajęć",1,1,3,1,4,1,1,1,1,"(…)",{"$f":"SUM(C5:K5)","v":14}]
[null,"imię i nazwisko**"]
[null,"uczestnik 1"]
[null,"uczestnik 2"]
[null,"uczestnik 3"]
[null,"uczestnik 4"]
[null,"uczestnik 5"]
[null,"uczestnik 6"]
[null,"uczestnik 7"]
[null,"uczestnik 8"]
[null,"uczestnik 9"]
[null,"uczestnik 10"]
[null,"uczestnik 11",{"$nulls":7},"L"]
[null,"uczestnik 12"]
[null,"(…)"]
[null,"* Lista obecności może obejmować okres od jednego miesiąca do maksymalnie 3 miesięcy. W przypadku objęcia listą obecności więcej niż jednego miesiąca, zaleca się żeby okres obowiązywania listy był zgodnie z okresem rozliczeniowym poszczególnych  wniosków o płatność."]
[null,"** Obecność na zajęciach uczestnika należy oznaczyć symbolem X lub w przypadku uczniów szkół ponadpodstawowych i osób dorosłych podpisem uczestnika projektu. W przypadku nieobecności należy oznaczyć pole znakiem NB. "]
[]
[{"$nulls":8},"podpis nauczyciela"]
[]
[]
[{"$nulls":8},"…………………………………………"]
[]
[]
[{"$nulls":8},"podpis dyrektora"]
[]
[{"$nulls":8},"…………………………………………."]

{"sheet":"Zajęcia dodatkowe ","index":1,"n_rows":63,"n_cols":12,"rows_kept":63,"merged":[[51,4,51,7],[51,8,51,11],[53,0,54,0],[56,0,57,0],[59,0,60,0]]}
{"$rows_empty":51}
[{"$nulls":4},"WNP",{"$nulls":3},"WNP"]
["Zadanie","Forma wsparcia","liczba osób (wartość docelowa)","Liczba godzin (wartość docelowa)","liczba osób","K","M","liczba godzin","liczba osób","K","M","liczba godzin"]
["Zadanie 1","Zajęcia dodatkowe - grupa 1"]
[null,"Zajęcia dodatkowe - grupa 2"]
[null,"suma",{"$f":"SUM(C54:C55)","v":0},{"$f":"SUM(D54:D55)","v":0},{"$f":"SUM(E54:E55)","v":0},{"$f":"SUM(F54:F55)","v":0},0,0,0,0,0,0]
["Zadanie 2","Szkolenie - grupa 1"]
[null,"Szkolenie - grupa 2"]
[null,"suma",{"$f":"SUM(C57:C58)","v":0},{"$f":"SUM(D57:D58)","v":0},{"$f":"SUM(E57:E58)","v":0},{"$f":"SUM(F57:F58)","v":0},0,0,0,0,0,0]
["Zadanie 3"]
[]
[]
[null,"* w przypadku występowania większej liczby grup w zadaniu należy dodać kolejne wiersze"]